Cogmind - Beta 12 @@@ ROGUE MODE // 2023.09.27 @ 19:14:54 Player: Zirov Result: Destroyed by G-47 Trooper with Particle Gun Performance ------------- Evolutions (0) 0 Regions Visited (2) 400 Robots Destroyed (19) 95 Value Destroyed (369) 369 Prototype IDs (5) 100 Alien Tech Used (0) 0 Bonus (47) 47 TOTAL SCORE: 1011 Bonus ------- High Alert Combat Kills 8 Follower Combat Kills 103 Friendly Fire -64 Cogmind --------- Core Integrity 0/250 Matter 203/300 Energy 100/100 System Corruption 1% Temperature Cool (9) Movement Walking (120) Location -10/Mines Parts ------- > --- POWER (1) -------- (None) > --- PROPULSION (2) --- Aluminum Leg Combat Airjet > --- UTILITY (2) ------ (None) > --- WEAPON (2) ------- Light Cannon > --- INVENTORY (5) ---- Large Storage Unit Hacking Suite Particle Gun Peak State ------------ > --- POWER ------------ Ion Engine > --- PROPULSION ------- Aluminum Leg Aluminum Leg > --- UTILITY ---------- Medium Storage Unit Hacking Suite > --- WEAPON ----------- Particle Gun Assault Rifle > --- INVENTORY -------- Light Ion Engine Aluminum Leg Compact Wheel Heat Sink Large Storage Unit Hacking Suite EM Pulse Gun Small Laser Light Cannon [Rating: 11] Favorites ----------- Power Ion Engine Engine Ion Engine Propulsion Aluminum Leg Leg Aluminum Leg Hover Unit Combat Airjet Utility Medium Storage Unit Device Heat Sink Storage Medium Storage Unit Hackware Hacking Suite Protection Light Armor Plating Weapon EM Pulse Gun Energy Gun EM Pulse Gun Ballistic Gun Assault Rifle Ballistic Cannon Light Cannon Launcher Grenade Launcher Build | -11 -10 -10 ------- Run | Jun Mat Min Slots Evolved . | . . . Power . | . . . Propulsion . | . . . Utility . | . . . Weapon . | . . . Parts Attached 34 | 7 18 9 Power 6 | 1 4 1 Engine 6 | 1 4 1 Core . | . . . Reactor . | . . . Propulsion 11 | 2 5 4 Treads . | . . . Leg 10 | 2 5 3 Wheel . | . . . Hover 1 | . . 1 Flight . | . . . Utility 5 | 1 4 . Device 1 | . 1 . Storage 2 | 1 1 . Processor . | . . . Hackware 1 | . 1 . Protection 1 | . 1 . Artifact . | . . . Weapon 12 | 3 5 4 Energy Gun 6 | 2 3 1 Energy Cannon . | . . . Ballistic Gun 3 | 1 1 1 Ballistic Cannon 2 | . 1 1 Launcher 1 | . . 1 Special Weapon . | . . . Impact Weapon . | . . . Slashing Weapon . | . . . Piercing Weapon . | . . . Special Melee Weapon . | . . . Unidentified Prototypes . | . . . Corrupted Parts 1 | . 1 . System Corruption 1 | . 1 . Parts Lost 8 | . 1 7 Power 2 | . . 2 Propulsion 4 | . 1 3 Utility 1 | . . 1 Weapon 1 | . . 1 Highest Loss Streak 6 | . 1 6 To Critical Strikes . | . . . Average Slot Usage (%) 93 | . 98 49 Engine 12 | . 14 . Leg 26 | . 27 14 Device 7 | . 9 . Storage 13 | . 14 8 Hackware 3 | . 3 . Protection 1 | . . 4 Energy Gun 14 | . 15 3 Ballistic Gun 11 | . 11 4 Naked Turns 4 | . . 4 Heaviest Build 21 | 14 21 19 Greatest Support 20 | 20 20 20 Greatest Overweight (x) 2 | . 2 1 Average Overweight (x) . | . . . Largest Inventory Capacity 10 | 8 10 10 Average Capacity 9 | 7 9 7 Most Carried 10 | 2 10 10 Average Carried 5 | 1 5 6 Final Capacity 10 | 8 10 5 Final Carried 10 | 2 10 3 Class Distribution -------------------- 94% | Mutant 5% | Scavenger-Mutant Dominant Class ---------------- Mutant | -10/Materials Mutant | -10/Mines Resources | -11 -10 -10 ----------- Run | Jun Mat Min Matter Collected 685 | 270 358 57 Remotely . | . . . Salvage Created 609 | 70 487 52 Parts 38 | 2 31 5 Haulers Intercepted 2 | . 2 . Recyclers Shooed 1 | . 1 . Parts Field Recycled . | . . . Retrieved Matter . | . . . Parts Self-Destructed . | . . . Prevented . | . . . Kills | -11 -10 -10 ------- Run | Jun Mat Min Combat Hostiles Destroyed 21 | . 10 11 Guns 7 | . 7 . Cannons 3 | . 3 . AOE 11 | . . 11 Classes Destroyed 9 | 1 6 2 Worker 2 | . . 2 Builder 1 | . 1 . Hauler 2 | . 2 . Recycler 1 | 1 . . Operator 2 | . 2 . Watcher 1 | . 1 . Swarmer 3 | . 3 . Grunt 7 | . 7 . Assembled 11 | . . 11 Best Kill Streak 13 | 1 5 13 Combat Bots Only 11 | . 3 11 Max Kills in Single Turn 5 | 1 2 5 Gunslinging . | . . . Exploded 5 | . . 5 Melee . | . . . Uniques/NPCs Destroyed . | . . . Combat | -11 -10 -10 -------- Run | Jun Mat Min Damage Taken 1277 | . 369 908 Core 261 | . 36 225 Absorbed by Shields . | . . . Core Remaining (%) 100 | 100 . . Volleys Fired 75 | 9 51 15 Largest 2 | 2 2 2 Hottest 85 | 80 85 60 Shots Fired 138 | 18 102 18 Gun 115 | 18 91 6 Cannon 16 | . 11 5 Launcher 7 | . . 7 Special . | . . . Kinetic 60 | . 52 8 Thermal 16 | . 13 3 Explosive 7 | . . 7 Electromagnetic 55 | 18 37 . Robot Hit Streak 9 | 2 9 7 Robot Miss Streak 5 | 5 4 2 Penetration Max . | . . . Secondary Targets . | . . . Shots Hit Robots 73 | 7 57 9 Core Hits 68 | 2 28 38 Critical Kills . | . . . Critical Parts Destroyed . | . . . Critical Strikes 2 | . 2 . Blast 1 | . 1 . Corrupt 1 | . 1 . Melee Attacks . | . . . Impact . | . . . Slashing . | . . . Piercing . | . . . Sneak Attacks . | . . . Combat Hostiles . | . . . Follow-up Attacks . | . . . Damage Inflicted 1988 | 155 820 1013 Guns 791 | 79 665 47 Cannons 211 | . 155 56 Explosions 986 | 76 . 910 Melee . | . . . Ramming . | . . . Kinetic 524 | . 442 82 Thermal 164 | 76 67 21 Explosive 910 | . . 910 Electromagnetic 390 | 79 311 . Impact . | . . . Slashing . | . . . Piercing . | . . . Highest Corruption 1 | . 1 1 Average Corruption 1 | . 1 1 Corruption Purged . | . . . Corruption Blocked . | . . . Effects 7 | . 6 1 Message Errors 3 | . 2 1 Matter Fused 2 | . 2 . Heat Flow Errors 1 | . 1 . Data Loss (minor) 1 | . 1 . Overload Shots . | . . . Overflow Damage 18 | 1 . 17 Projectiles . | . . . Explosions 18 | 1 . 17 Melee . | . . . Knockbacks 3 | . 3 . Impact . | . . . Kinetic 3 | . 3 . Secondary . | . . . Self-Inflicted Damage 94 | . . 94 Shots 3 | . . 3 Rammed . | . . . Targets Rammed . | . . . Kicked . | . . . Crushed . | . . . Highest Temperature 265 | 54 265 39 Average Temperature 46 | 23 58 19 Received Heat Transfer 285 | . 198 87 Siege Activations . | . . . Robots Corrupted . | . . . Combat Hostiles . | . . . Parts Fried . | . . . Impact Corruptions . | . . . Robots Melted . | . . . Combat Hostiles . | . . . Parts Melted . | . . . Heat Transferred 273 | 50 173 50 Parts Sabotaged . | . . . Parts Stolen . | . . . Parts Stripped . | . . . Power Chain Reactions 2 | 2 . . Missiles Intercepted . | . . . Alert | -11 -10 -10 ------- Run | Jun Mat Min Peak Influence 447 | 5 447 206 Initial 174 | . 3 174 Average 170 | 1 182 200 Maximum Alert Level 2 | . 2 1 Low Security (%) 67 | 100 70 20 Level 1 15 | . 8 79 Level 2 16 | . 20 . Level 3 . | . . . Level 4 . | . . . Level 5 . | . . . High Security . | . . . Max Security . | . . . Squads Dispatched 3 | . 2 1 Investigation . | . . . Extermination . | . . . Reinforcement 2 | . 2 . Assault 1 | . . 1 Garrison . | . . . Intercept . | . . . Searches Triggered . | . . . Construction Impeded . | . . . Haulers Reinforced . | . . . Active Scanning Responses . | . . . Cargo Convoy Interrupts . | . . . Stealth | -11 -10 -10 --------- Run | Jun Mat Min Distress Signals . | . . . Communications Jammed . | . . . Distress Signals . | . . . Times Spotted 45 | . 26 19 Peak Tracking Total 16 | . 4 16 Tactical Retreats 4 | . 3 1 Traps | -11 -10 -10 ------- Run | Jun Mat Min Traps Triggered 2 | . 2 . Indirectly . | . . . Trap Hack Attempts . | . . . Triggered . | . . . Disarmed . | . . . Reprogrammed . | . . . Reused . | . . . Traps Extracted . | . . . Installed . | . . . Triggered . | . . . Machines | -11 -10 -10 ---------- Run | Jun Mat Min Machines Disabled 1 | . 1 . Max in Single Turn 1 | . 1 . Machines Repaired . | . . . Machines Sabotaged . | . . . Overloaded Fab Kills . | . . . Hacking | -11 -10 -10 --------- Run | Jun Mat Min Machines Accessed 6 | . 6 . Terminals 6 | . 6 . Fabricators . | . . . Repair Stations . | . . . Recycling Units . | . . . Scanalyzers . | . . . Garrison Access . | . . . Total Hacks 19 | . 19 . Successful 10 | . 10 . Failed 8 | . 8 . Catastrophic 3 | . 3 . Database Lockouts 1 | . 1 . Manual 10 | . 10 . Terminals 19 | . 19 . Fabricators . | . . . Repair Stations . | . . . Recycling Units . | . . . Scanalyzers . | . . . Garrison Access . | . . . Terminal Hacks 6 | . 6 . Robot Analysis 1 | . 1 . Prototype ID Bank 2 | . 2 . Terminal Index 1 | . 1 . Surveillance Status 1 | . 1 . Zone Layout 1 | . 1 . Fabricator Hacks . | . . . Repair Station Hacks . | . . . Recycling Unit Hacks . | . . . Scanalyzer . | . . . Garrison Access Hacks . | . . . Unauthorized Hacks 4 | . 4 . Terminals 4 | . 4 . Botnet 4 | . 4 . Fabricators . | . . . Repair Stations . | . . . Recycling Units . | . . . Scanalyzers . | . . . Garrison Access . | . . . Data Cores Recovered . | . . . Used . | . . . Hacking Detections 6 | . 6 . Full Trace Events . | . . . Feedback Events . | . . . Feedback Blocked . | . . . Robot Schematics Acquired . | . . . Robots Built . | . . . Authchips . | . . . Time . | . . . Total Robot Build Rating . | . . . Part Schematics Acquired . | . . . Parts Built . | . . . Authchips . | . . . Time . | . . . Total Part Build Rating . | . . . Parts Repaired . | . . . Time . | . . . Parts Recycled . | . . . Recycled Matter . | . . . Retrieved Matter . | . . . Retrieved Components . | . . . Parts Scanalyzed . | . . . Part Schematics Acquired . | . . . Parts Damaged . | . . . Bothacking | -11 -10 -10 ------------ Run | Jun Mat Min Used RIF Installer . | . . . Robots Hacked . | . . . Non-combat . | . . . Combat . | . . . Robot Hacks Applied . | . . . Relay Couplers Released . | . . . Fabnet Peak Effective % . | . . . Robots Rewired . | . . . Allies Hacked . | . . . Hacks Repelled . | . . . Allies | -11 -10 -10 -------- Run | Jun Mat Min Total Allies 1 | . . 1 Largest Group 1 | . . 1 Highest-Rated Group 31 | . . 31 Highest-Rated Ally 31 | . . 31 Total Orders . | . . . Ally Attacks 17 | . . 17 Total Damage 316 | . . 316 Kills 3 | . . 3 Allies Corrupted . | . . . Allies Melted . | . . . Intel | -11 -10 -10 ------- Run | Jun Mat Min Robot Analysis Total 1 | . 1 . Derelict Logs Recovered . | . . . Drone Launches . | . . . Drone Recoveries . | . . . Exploration | -11 -10 -10 ------------- Run | Jun Mat Min Turns Passed 1395 | 113 1133 149 Spaces Moved 883 | 58 731 94 Core 12 | 5 . 7 Treads . | . . . Legs 825 | 53 731 41 Wheels . | . . . Hover 46 | . . 46 Flight . | . . . Fastest Speed 50 | 50 120 50 Average Speed 119 | 113 121 104 Slowest Speed 260 | 120 260 190 Overloaded Moves . | . . . Propulsion Burnouts . | . . . Robots Hopped . | . . . Cave-ins Triggered . | . . . Exploration Rate (%) 41 | 6 97 21 Regions Visited 2 Branch Regions 1 Pre-discovered Areas . | . . . Known Exits Taken . | . . . Unknown Exits Taken 2 | 1 1 . Scrap Searched . | . . . Spaces Dug 11 | . . 11 Terrain Destroyed 57 | 9 . 48 Melee . | . . . Projectile . | . . . AOE 57 | 9 . 48 Terrain Rammed . | . . . Walls Destroyed . | . . . Machines Disabled . | . . . Actions | -11 -10 -10 --------- Run | Jun Mat Min Total 1083 | 84 872 127 Wait 67 | 9 54 4 Move 881 | 57 730 94 Hop . | . . . Pick Up 12 | 1 10 1 Fast Attach 15 | 7 7 1 Attach 8 | . 1 7 Detach 4 | 1 2 1 Swap 11 | . 10 1 Drop 10 | . 7 3 Fire 75 | 9 51 15 Melee . | . . . Ram . | . . . Kick . | . . . Crush . | . . . Escape Stasis . | . . . Rewire . | . . . Trap . | . . . Miscellaneous . | . . . Route ------- -11/Junkyard -10/Materials (discovered 4 exits: [*Mat x3] / [*Min]) -10/Mines History --------- Turn | Location | Event 4 | -11/Junkyard | Discovered new exit (range 15) 114 | -11/Junkyard | Entered Materials 302 | -10/Materials | Build established: Mutant 339 | -10/Materials | Discovered new exit (range 16) 528 | -10/Materials | Discovered new exit (range 12) 636 | -10/Materials | Discovered new exit (range 15) 908 | -10/Materials | Central database locked down 1052 | -10/Materials | Discovered new exit (range 14) 1247 | -10/Materials | Entered Mines 1248 | -10/Mines | Assembled infested the area 1253 | -10/Mines | Assisted by a Guerilla fighting off Assembled 1272 | -10/Mines | Met a Derelict testing a Signal Generator 1286 | -10/Mines | Destroyed 11 combat bots 1293 | -10/Mines | Core integrity fell below 50% 1300 | -10/Mines | Core integrity fell below 20% 1333 | -10/Mines | Released all parts (3) 1335 | -10/Mines | Lost 6 parts (1p3n1u1w) 1396 | -10/Mines | Destroyed by G-47 Trooper with Particle Gun Last Messages --------------- 01319_ Acquired 27 matter. 01321_ The unstable cave ceiling collapses. 01323_ Acquired 30 matter. 01327_ The unstable cave ceiling collapses. 01329_ ALERT: Intercepting significant anomalous signal. Redirecting assault force. 01329_ The unstable cave ceiling collapses. 01333_ Dropped Med. Storage Unit. 01333_ Released Aluminum Leg. 01333_ Released Sml. Laser. 01333_ Released Assault Rifle. 01337_ Acquired Cmb. Airjet. 01338_ The unstable cave ceiling collapses. 01339_ Dropped EM Pulse Gun. 01343_ Acquired Aluminum Leg. 01350_ The unstable cave ceiling collapses. 01380_ WA-5AH(g) heat spikes uncontrollably. 01380_ WA-5AH(g) destroyed. 01387_ G-47 Trooper: "LOCATED POTENTIAL SOURCE OF ANOMALOUS SIGNAL. NEUTRALIZING." Map ----- +----------------------------------------------------+ | | | | | | | | | | | | | | | | | | | | | | | | | | | | | | | | | | | | | ????????????#######?????????????????????? | | ?????????#### ##????????????????????? | | ####????## ## # ##??#############????? | | #????# # # ##??# ##???? | | #???## # #### #???? | | ##### ## ## #???? | | = # # # # ## ## #???? | | ### ## ![ # ## ## @### #???? | | ## [ ## ## #?##### ##???? | | # [ # ### ## #?????####????? | | ##########?# ## #?????????????? | | # #?????????# #?????????????? | | ##?????????#### #?????????????? | | #?????????????# #?????????????? | | #?????????????#* #?????????????? | | #?????????????#%g#?????????????? | | #?????????????#!%#?????????????? | | # #####?????????????# % ?????????????? | | ## ##????????????????? ?????????????? | | ?####?????????????????? ?????????????? | | ???????????????????????# ????????????? | | ???????????????????????## ????????????? | | ????????????????????????? ????????????? | | ????????????????????????? ????????????? | | ????????????????????????? ???????????? | | ????????????????????????? ##???????????? | | ????????????????????????? ?????????????? | | ????????????????????????????????????????? | | ????????????????????????????????????????? | | ????????????????????????????????????????? | | ????????????????????????????????????????? | | ????????????????????????????????????????? | +----------------------------------------------------+ Best States ------------- Heat Dissipation 35 Energy Generation 10 Energy Capacity 250 Matter Stores 300 Matter Capacity 300 Sight Range 16 Terrain Scan Density 10 Armor Coverage 150 Evasion (%) 55 Offensive Hacking 10 Item Schematics ----------------- None Robot Schematics ------------------ None Fabricated ------------ Nothing Alien Tech Used ----------------- None Achievements -------------- None Challenges ------------ None Game ------ Seed FusionShadeScrap Manual? 0 Play Time 00:21:49 Cumulative 111.3 hours Start 2023.09.27 @ 18:02:41 End 2023.09.27 @ 19:14:54 Sessions 2 Manual Loads 0 Difficulty Rogue Special Mode None Game No. 113 Rogue 113 Adventurer 0 Explorer 0 Win Type - Total 0 Types 0/0/0/0/0/0/0/0/0 Lore% 38 Gallery% 41 Achievement% 32 Wizard Run 0 Options --------- ASCII 1 Keyboard 1 Movement Numpad Keybinds 0 Fullscreen 1 Font 18/SmallcapsGlow Map View 76x50 Tactical HUD 1 Map Filters NONE Filters NONE Steam 1 RUN: ac0b52fb-7ac1-4363-994f-dc230f9751dd